[Event "Titled Tuesday Blitz October 5 2021"]
[White "Hirneise, Jens"]
[Black "Liyanage, Ranindu Dilshan"]
[WhiteFideId "24614734"]
[BlackFideId "9915834"]
[WhiteElo "2323"]
[BlackElo "1839"]
[Result "0-1"]
[Round "07"]
[TimeControl "180+1"]
[Date "2021.10.05"]
[WhiteClock "0:00:01"]
[BlackClock "0:00:13"]

1. Nc3 {[%clk 0:03:00]}  d5 {[%clk 0:02:58]} 2. e4 {[%clk 0:02:57]}  d4 {[%clk 0:02:58]} 3. Nce2 {[%clk 0:02:55]}  c5 {[%clk 0:02:58]} 4. d3 {[%clk 0:02:53]}  Nc6 {[%clk 0:02:58]} 5. f4 {[%clk 0:02:51]}  g6 {[%clk 0:02:54]} 6. Nf3 {[%clk 0:02:50]}  Bg7 {[%clk 0:02:54]} 7. g3 {[%clk 0:02:49]}  Nf6 {[%clk 0:02:53]} 8. h3 {[%clk 0:02:48]}  O-O {[%clk 0:02:52]} 9. Bg2 {[%clk 0:02:49]}  e5 {[%clk 0:02:49]} 10. O-O {[%clk 0:02:42]}  Qe7 {[%clk 0:02:46]} 11. f5 {[%clk 0:02:31]}  gxf5 {[%clk 0:02:45]} 12. Nh4 {[%clk 0:02:30]}  f4 {[%clk 0:02:36]} 13. Nf5 {[%clk 0:02:18]}  Bxf5 {[%clk 0:02:33]} 14. exf5 {[%clk 0:02:19]}  Rfe8 {[%clk 0:02:29]} 15. g4 {[%clk 0:02:04]}  h6 {[%clk 0:02:28]} 16. Be4 {[%clk 0:01:45]}  Rad8 {[%clk 0:02:25]} 17. Kh2 {[%clk 0:01:41]}  c4 {[%clk 0:02:24]} 18. Ng1 {[%clk 0:01:37]}  cxd3 {[%clk 0:02:16]} 19. cxd3 {[%clk 0:01:36]}  Nxe4 {[%clk 0:02:09]} 20. dxe4 {[%clk 0:01:37]}  d3 {[%clk 0:02:10]} 21. Nf3 {[%clk 0:01:33]}  Rd6 {[%clk 0:01:56]} 22. Bd2 {[%clk 0:01:30]}  Qd8 {[%clk 0:01:40]} 23. Rg1 {[%clk 0:01:27]}  Nd4 {[%clk 0:01:39]} 24. g5 {[%clk 0:01:16]}  Nxf3+ {[%clk 0:01:39]} 25. Qxf3 {[%clk 0:01:17]}  hxg5 {[%clk 0:01:40]} 26. Qh5 {[%clk 0:01:11]}  Rh6 {[%clk 0:00:56]} 27. Qxg5 {[%clk 0:01:08]}  Qxg5 {[%clk 0:00:57]} 28. Rxg5 {[%clk 0:01:08]}  f6 {[%clk 0:00:57]} 29. Rgg1 {[%clk 0:01:05]}  Kf7 {[%clk 0:00:51]} 30. Rac1 {[%clk 0:01:05]}  Re7 {[%clk 0:00:47]} 31. Rc3 {[%clk 0:00:49]}  Rd7 {[%clk 0:00:47]} 32. Rgc1 {[%clk 0:00:50]}  Rh8 {[%clk 0:00:46]} 33. Rc7 {[%clk 0:00:35]}  Rd8 {[%clk 0:00:45]} 34. Kg2 {[%clk 0:00:36]}  Bf8 {[%clk 0:00:26]} 35. Kf3 {[%clk 0:00:32]}  Bd6 {[%clk 0:00:26]} 36. Rxd7+ {[%clk 0:00:30]}  Rxd7 {[%clk 0:00:27]} 37. h4 {[%clk 0:00:25]}  Rd8 {[%clk 0:00:26]} 38. Rg1 {[%clk 0:00:18]}  Bc5 {[%clk 0:00:26]} 39. Rg2 {[%clk 0:00:13]}  Rh8 {[%clk 0:00:25]} 40. Rh2 {[%clk 0:00:11]}  Rg8 {[%clk 0:00:25]} 41. Rh3 {[%clk 0:00:04]}  Rg1 {[%clk 0:00:23]} 42. h5 {[%clk 0:00:03]}  Kg7 {[%clk 0:00:19]} 43. h6+ {[%clk 0:00:03]}  Kh7 {[%clk 0:00:20]} 44. b4 {[%clk 0:00:02]}  Bd4 {[%clk 0:00:20]} 45. b5 {[%clk 0:00:01]}  Rf1+ {[%clk 0:00:20]} 46. Kg4 {[%clk 0:00:01]}  Rf2 {[%clk 0:00:20]} 47. Bb4 {[%clk 0:00:01]}  d2 {[%clk 0:00:18]} 48. Rd3 {[%clk 0:00:01]}  Rg2+ {[%clk 0:00:14]} 49. Kh5 {[%clk 0:00:01]}  Rg5+ {[%clk 0:00:13]} 0-1


[Site "https://www.chess.com"]

[Event "Titled Tuesday Blitz October 5 2021"]
[White "Ibrahimli, Murad"]
[Black "Hambleton, Aman"]
[WhiteFideId "13410229"]
[BlackFideId "2606577"]
[WhiteElo "2109"]
[BlackElo "2552"]
[Result "1-0"]
[Round "07"]
[TimeControl "180+1"]
[Date "2021.10.05"]
[WhiteClock "0:00:12"]
[BlackClock "0:00:01"]

1. d4 {[%clk 0:03:00]}  Nf6 {[%clk 0:02:58]} 2. c4 {[%clk 0:03:00]}  e6 {[%clk 0:02:57]} 3. Nf3 {[%clk 0:02:59]}  b6 {[%clk 0:02:54]} 4. g3 {[%clk 0:02:56]}  Ba6 {[%clk 0:02:51]} 5. Nbd2 {[%clk 0:02:54]}  Bb4 {[%clk 0:02:48]} 6. Qc2 {[%clk 0:02:49]}  Bb7 {[%clk 0:02:44]} 7. Bg2 {[%clk 0:02:49]}  Be4 {[%clk 0:02:43]} 8. Qb3 {[%clk 0:02:42]}  Nc6 {[%clk 0:02:25]} 9. O-O {[%clk 0:02:41]}  Bxd2 {[%clk 0:02:23]} 10. Bxd2 {[%clk 0:02:40]}  O-O {[%clk 0:02:12]} 11. Bc3 {[%clk 0:02:31]}  d6 {[%clk 0:01:58]} 12. Bh3 {[%clk 0:02:22]}  Bxf3 {[%clk 0:01:40]} 13. exf3 {[%clk 0:02:20]}  Na5 {[%clk 0:01:40]} 14. Qa4 {[%clk 0:02:03]}  Qe8 {[%clk 0:01:40]} 15. Qxe8 {[%clk 0:01:59]}  Rfxe8 {[%clk 0:01:41]} 16. b3 {[%clk 0:01:59]}  c5 {[%clk 0:01:34]} 17. Rad1 {[%clk 0:01:37]}  Rad8 {[%clk 0:01:10]} 18. f4 {[%clk 0:01:16]}  Nc6 {[%clk 0:01:05]} 19. dxc5 {[%clk 0:00:59]}  dxc5 {[%clk 0:01:06]} 20. Bg2 {[%clk 0:00:58]}  Nb4 {[%clk 0:00:40]} 21. a3 {[%clk 0:00:42]}  Nc2 {[%clk 0:00:21]} 22. Bb2 {[%clk 0:00:28]}  Kf8 {[%clk 0:00:08]} 23. Bc6 {[%clk 0:00:25]}  Rxd1 {[%clk 0:00:08]} 24. Rxd1 {[%clk 0:00:25]}  Rc8 {[%clk 0:00:09]} 25. Bb7 {[%clk 0:00:23]}  Rc7 {[%clk 0:00:06]} 26. Bf3 {[%clk 0:00:22]}  Ke7 {[%clk 0:00:02]} 27. Kf1 {[%clk 0:00:21]}  Rd7 {[%clk 0:00:02]} 28. Rxd7+ {[%clk 0:00:19]}  Kxd7 {[%clk 0:00:01]} 29. Ke2 {[%clk 0:00:19]}  Nd4+ {[%clk 0:00:01]} 30. Bxd4 {[%clk 0:00:18]}  cxd4 {[%clk 0:00:02]} 31. Kd3 {[%clk 0:00:19]}  a5 {[%clk 0:00:02]} 32. Kxd4 {[%clk 0:00:19]}  Kd6 {[%clk 0:00:02]} 33. b4 {[%clk 0:00:19]}  axb4 {[%clk 0:00:03]} 34. axb4 {[%clk 0:00:20]}  Nd7 {[%clk 0:00:04]} 35. Bd1 {[%clk 0:00:20]}  h6 {[%clk 0:00:02]} 36. Ba4 {[%clk 0:00:20]}  Nf6 {[%clk 0:00:02]} 37. c5+ {[%clk 0:00:20]}  bxc5+ {[%clk 0:00:03]} 38. bxc5+ {[%clk 0:00:21]}  Ke7 {[%clk 0:00:02]} 39. Bc6 {[%clk 0:00:21]}  Ng4 {[%clk 0:00:02]} 40. Bf3 {[%clk 0:00:11]}  Nxf2 {[%clk 0:00:01]} 41. Ke3 {[%clk 0:00:12]}  Nh3 {[%clk 0:00:01]} 42. Bg2 {[%clk 0:00:12]} 1-0


[Site "https://www.chess.com"]

[Event "Titled Tuesday Blitz October 5 2021"]
[White "Kadam, Om Manish"]
[Black "Silvestre, Christian"]
[WhiteFideId "45076294"]
[BlackFideId "30956269"]
[WhiteElo "1729"]
[BlackElo "2505"]
[Result "1-0"]
[Round "07"]
[TimeControl "180+1"]
[Date "2021.10.05"]
[WhiteClock "0:00:52"]
[BlackClock "0:00:14"]

1. e4 {[%clk 0:03:00]}  c6 {[%clk 0:02:58]} 2. d4 {[%clk 0:03:00]}  d5 {[%clk 0:02:58]} 3. Nc3 {[%clk 0:03:00]}  a6 {[%clk 0:02:58]} 4. exd5 {[%clk 0:02:59]}  cxd5 {[%clk 0:02:56]} 5. Nf3 {[%clk 0:02:59]}  Nc6 {[%clk 0:02:57]} 6. Bd3 {[%clk 0:02:59]}  Bg4 {[%clk 0:02:57]} 7. Be3 {[%clk 0:02:58]}  Nf6 {[%clk 0:02:47]} 8. h3 {[%clk 0:02:57]}  Bh5 {[%clk 0:02:46]} 9. Be2 {[%clk 0:02:54]}  e6 {[%clk 0:02:43]} 10. O-O {[%clk 0:02:53]}  Bd6 {[%clk 0:02:41]} 11. a3 {[%clk 0:02:53]}  Rc8 {[%clk 0:02:39]} 12. Na4 {[%clk 0:02:46]}  Bb8 {[%clk 0:02:31]} 13. Nc5 {[%clk 0:02:45]}  Qc7 {[%clk 0:02:28]} 14. g3 {[%clk 0:02:40]}  O-O {[%clk 0:02:10]} 15. b4 {[%clk 0:02:35]}  Rfe8 {[%clk 0:01:42]} 16. Bf4 {[%clk 0:02:33]}  Qe7 {[%clk 0:01:40]} 17. Bxb8 {[%clk 0:02:16]}  Nxb8 {[%clk 0:01:33]} 18. Ne5 {[%clk 0:02:15]}  Bxe2 {[%clk 0:01:29]} 19. Qxe2 {[%clk 0:02:16]}  Rc7 {[%clk 0:00:57]} 20. Rac1 {[%clk 0:02:07]}  Rec8 {[%clk 0:00:56]} 21. c4 {[%clk 0:02:06]}  dxc4 {[%clk 0:00:54]} 22. Nxc4 {[%clk 0:02:07]}  Nd5 {[%clk 0:00:51]} 23. Rfe1 {[%clk 0:01:33]}  b6 {[%clk 0:00:49]} 24. Nb3 {[%clk 0:01:33]}  h6 {[%clk 0:00:44]} 25. Kh2 {[%clk 0:01:18]}  Qg5 {[%clk 0:00:41]} 26. h4 {[%clk 0:01:12]}  Qf6 {[%clk 0:00:39]} 27. Ne5 {[%clk 0:01:06]}  Rc3 {[%clk 0:00:27]} 28. Rxc3 {[%clk 0:01:03]}  Rxc3 {[%clk 0:00:27]} 29. Rc1 {[%clk 0:01:04]}  Rxc1 {[%clk 0:00:23]} 30. Nxc1 {[%clk 0:01:05]}  Qd8 {[%clk 0:00:19]} 31. Ncd3 {[%clk 0:00:58]}  Nf6 {[%clk 0:00:18]} 32. Qf3 {[%clk 0:00:55]}  Qxd4 {[%clk 0:00:16]} 33. Qa8 {[%clk 0:00:53]}  Qd8 {[%clk 0:00:16]} 34. Nf4 {[%clk 0:00:53]}  Nfd7 {[%clk 0:00:14]} 35. Nxd7 {[%clk 0:00:51]}  Qxd7 {[%clk 0:00:14]} 36. Qxb8+ {[%clk 0:00:51]}  Kh7 {[%clk 0:00:14]} 37. Qxb6 {[%clk 0:00:52]} 1-0


[Site "https://www.chess.com"]

[Event "Titled Tuesday Blitz October 5 2021"]
[White "Kamsky, Gata"]
[Black "Janaszak, Dawid"]
[WhiteFideId "2000024"]
[BlackFideId "1119206"]
[WhiteElo "2603"]
[BlackElo "2215"]
[Result "1-0"]
[Round "07"]
[TimeControl "180+1"]
[Date "2021.10.05"]
[WhiteClock "0:01:31"]
[BlackClock "0:00:11"]

1. e4 {[%clk 0:03:00]}  c5 {[%clk 0:02:54]} 2. Nf3 {[%clk 0:03:00]}  Nc6 {[%clk 0:02:53]} 3. d4 {[%clk 0:02:59]}  cxd4 {[%clk 0:02:54]} 4. Nxd4 {[%clk 0:02:59]}  g6 {[%clk 0:02:53]} 5. c4 {[%clk 0:02:58]}  Nf6 {[%clk 0:02:53]} 6. Nc3 {[%clk 0:02:57]}  d6 {[%clk 0:02:52]} 7. Be2 {[%clk 0:02:56]}  Nxd4 {[%clk 0:02:50]} 8. Qxd4 {[%clk 0:02:56]}  Bg7 {[%clk 0:02:51]} 9. Bd2 {[%clk 0:02:56]}  O-O {[%clk 0:02:51]} 10. Qe3 {[%clk 0:02:56]}  Qb6 {[%clk 0:02:47]} 11. Qxb6 {[%clk 0:02:54]}  axb6 {[%clk 0:02:48]} 12. O-O {[%clk 0:02:46]}  Be6 {[%clk 0:02:45]} 13. Rfc1 {[%clk 0:02:38]}  Rfc8 {[%clk 0:02:38]} 14. b3 {[%clk 0:02:35]}  Nd7 {[%clk 0:02:15]} 15. f3 {[%clk 0:02:30]}  f5 {[%clk 0:02:05]} 16. exf5 {[%clk 0:02:28]}  gxf5 {[%clk 0:02:06]} 17. a4 {[%clk 0:02:19]}  Kf7 {[%clk 0:01:54]} 18. Rab1 {[%clk 0:02:18]}  h5 {[%clk 0:01:43]} 19. f4 {[%clk 0:02:09]}  Rh8 {[%clk 0:01:33]} 20. Be3 {[%clk 0:02:05]}  Nc5 {[%clk 0:01:29]} 21. Nb5 {[%clk 0:01:58]}  Rac8 {[%clk 0:01:22]} 22. Rd1 {[%clk 0:01:57]}  h4 {[%clk 0:01:18]} 23. Bf3 {[%clk 0:01:57]}  h3 {[%clk 0:01:15]} 24. g3 {[%clk 0:01:56]}  Bd7 {[%clk 0:00:45]} 25. Bd5+ {[%clk 0:01:55]}  Kf8 {[%clk 0:00:42]} 26. Kf2 {[%clk 0:01:45]}  Bc6 {[%clk 0:00:42]} 27. Bxc5 {[%clk 0:01:45]}  bxc5 {[%clk 0:00:38]} 28. Be6 {[%clk 0:01:45]}  Rd8 {[%clk 0:00:30]} 29. Bxf5 {[%clk 0:01:45]}  Bxb5 {[%clk 0:00:30]} 30. cxb5 {[%clk 0:01:43]}  Bd4+ {[%clk 0:00:30]} 31. Kf3 {[%clk 0:01:41]}  b6 {[%clk 0:00:24]} 32. Be6 {[%clk 0:01:40]}  Rh6 {[%clk 0:00:20]} 33. f5 {[%clk 0:01:40]}  Kg7 {[%clk 0:00:20]} 34. b4 {[%clk 0:01:37]}  Rf8 {[%clk 0:00:19]} 35. Ke4 {[%clk 0:01:36]}  Be5 {[%clk 0:00:15]} 36. a5 {[%clk 0:01:35]}  bxa5 {[%clk 0:00:14]} 37. bxa5 {[%clk 0:01:34]}  Rb8 {[%clk 0:00:13]} 38. b6 {[%clk 0:01:34]}  c4 {[%clk 0:00:11]} 39. Bxc4 {[%clk 0:01:31]} 1-0


[Site "https://www.chess.com"]

[Event "Titled Tuesday Blitz October 5 2021"]
[White "Kanyamarala, Tarun"]
[Black "Mortazavi, Ali"]
[WhiteFideId "45004714"]
[BlackFideId "401323"]
[WhiteElo "2077"]
[BlackElo "2339"]
[Result "1-0"]
[Round "07"]
[TimeControl "180+1"]
[Date "2021.10.05"]
[WhiteClock "0:00:10"]
[BlackClock "0:00:09"]

1. d4 {[%clk 0:03:00]}  Nf6 {[%clk 0:02:58]} 2. Nf3 {[%clk 0:03:01]}  g6 {[%clk 0:02:57]} 3. e3 {[%clk 0:03:00]}  Bg7 {[%clk 0:02:57]} 4. Be2 {[%clk 0:03:00]}  O-O {[%clk 0:02:58]} 5. O-O {[%clk 0:03:00]}  d6 {[%clk 0:02:59]} 6. c4 {[%clk 0:03:00]}  Nbd7 {[%clk 0:02:59]} 7. Nc3 {[%clk 0:03:00]}  e5 {[%clk 0:03:00]} 8. Qc2 {[%clk 0:02:57]}  Re8 {[%clk 0:03:00]} 9. b4 {[%clk 0:02:55]}  e4 {[%clk 0:03:00]} 10. Nd2 {[%clk 0:02:55]}  Qe7 {[%clk 0:03:01]} 11. Bb2 {[%clk 0:02:53]}  Nf8 {[%clk 0:03:01]} 12. Rfc1 {[%clk 0:02:52]}  h5 {[%clk 0:03:01]} 13. Qd1 {[%clk 0:02:51]}  Bf5 {[%clk 0:02:58]} 14. a4 {[%clk 0:02:42]}  N8h7 {[%clk 0:02:57]} 15. Nd5 {[%clk 0:02:29]}  Nxd5 {[%clk 0:02:54]} 16. cxd5 {[%clk 0:02:29]}  Nf6 {[%clk 0:02:51]} 17. Qb3 {[%clk 0:02:25]}  Bg4 {[%clk 0:02:45]} 18. Bf1 {[%clk 0:02:23]}  h4 {[%clk 0:02:40]} 19. h3 {[%clk 0:02:22]}  Bf5 {[%clk 0:02:40]} 20. Rc3 {[%clk 0:02:20]}  Rac8 {[%clk 0:02:25]} 21. a5 {[%clk 0:02:16]}  g5 {[%clk 0:02:22]} 22. a6 {[%clk 0:02:05]}  b6 {[%clk 0:02:22]} 23. f3 {[%clk 0:01:47]}  exf3 {[%clk 0:02:18]} 24. gxf3 {[%clk 0:01:44]}  Qd7 {[%clk 0:02:05]} 25. Kh2 {[%clk 0:01:37]}  Nh5 {[%clk 0:02:05]} 26. Rcc1 {[%clk 0:01:26]}  Ng3 {[%clk 0:02:03]} 27. Bg2 {[%clk 0:01:23]}  Bg6 {[%clk 0:01:36]} 28. Re1 {[%clk 0:01:00]}  f5 {[%clk 0:01:27]} 29. e4 {[%clk 0:00:58]}  fxe4 {[%clk 0:01:17]} 30. fxe4 {[%clk 0:00:58]}  Rf8 {[%clk 0:01:16]} 31. Qe3 {[%clk 0:00:49]}  Rf4 {[%clk 0:01:12]} 32. e5 {[%clk 0:00:41]}  Rcf8 {[%clk 0:01:02]} 33. Rac1 {[%clk 0:00:24]}  Kh7 {[%clk 0:00:54]} 34. Nf3 {[%clk 0:00:17]}  Qf5 {[%clk 0:00:40]} 35. Rxc7 {[%clk 0:00:13]}  Kh8 {[%clk 0:00:18]} 36. exd6 {[%clk 0:00:12]}  Re4 {[%clk 0:00:16]} 37. Qc1 {[%clk 0:00:09]}  Rxe1 {[%clk 0:00:12]} 38. Qxe1 {[%clk 0:00:09]}  Qf4 {[%clk 0:00:11]} 39. Bc1 {[%clk 0:00:05]}  Qf5 {[%clk 0:00:06]} 40. Qe7 {[%clk 0:00:04]}  Rg8 {[%clk 0:00:06]} 41. Nxg5 {[%clk 0:00:02]}  Nf1+ {[%clk 0:00:04]} 42. Kg1 {[%clk 0:00:02]}  Ng3 {[%clk 0:00:02]} 43. Nf7+ {[%clk 0:00:02]}  Bxf7 {[%clk 0:00:01]} 44. Qxf7 {[%clk 0:00:02]}  Ne2+ {[%clk 0:00:02]} 45. Kh1 {[%clk 0:00:02]}  Qb1 {[%clk 0:00:02]} 46. Qh5+ {[%clk 0:00:01]}  Qh7 {[%clk 0:00:03]} 47. Qxh7+ {[%clk 0:00:02]}  Kxh7 {[%clk 0:00:03]} 48. Be4+ {[%clk 0:00:02]}  Kh8 {[%clk 0:00:03]} 49. Be3 {[%clk 0:00:03]}  Nxd4 {[%clk 0:00:03]} 50. Rxg7 {[%clk 0:00:01]}  Rxg7 {[%clk 0:00:03]} 51. Bxd4 {[%clk 0:00:01]}  Kg8 {[%clk 0:00:04]} 52. Bxg7 {[%clk 0:00:01]}  Kf7 {[%clk 0:00:04]} 53. d7 {[%clk 0:00:02]}  Ke7 {[%clk 0:00:05]} 54. d8=Q+ {[%clk 0:00:02]}  Kxd8 {[%clk 0:00:06]} 55. Bf6+ {[%clk 0:00:03]}  Kd7 {[%clk 0:00:06]} 56. Bxh4 {[%clk 0:00:04]}  Kd6 {[%clk 0:00:06]} 57. Bg3+ {[%clk 0:00:05]}  Kd7 {[%clk 0:00:07]} 58. h4 {[%clk 0:00:06]}  b5 {[%clk 0:00:07]} 59. Bf3 {[%clk 0:00:06]}  Ke7 {[%clk 0:00:07]} 60. Kg2 {[%clk 0:00:07]}  Kf7 {[%clk 0:00:08]} 61. Be2 {[%clk 0:00:08]}  Kg7 {[%clk 0:00:08]} 62. Bxb5 {[%clk 0:00:09]}  Kh6 {[%clk 0:00:09]} 63. Bd3 {[%clk 0:00:10]} 1-0


[Site "https://www.chess.com"]

[Event "Titled Tuesday Blitz October 5 2021"]
[White "Koridze, Lile"]
[Black "Iskusnyh, Sergei"]
[WhiteFideId "13612514"]
[BlackFideId "4120027"]
[WhiteElo "1978"]
[BlackElo "2492"]
[Result "0-1"]
[Round "07"]
[TimeControl "180+1"]
[Date "2021.10.05"]
[WhiteClock "0:00:15"]
[BlackClock "0:01:02"]

1. d4 {[%clk 0:03:00]}  d5 {[%clk 0:02:59]} 2. c4 {[%clk 0:02:58]}  c6 {[%clk 0:02:57]} 3. Nf3 {[%clk 0:02:58]}  Nf6 {[%clk 0:02:55]} 4. Nc3 {[%clk 0:02:58]}  e6 {[%clk 0:02:54]} 5. e3 {[%clk 0:02:58]}  a6 {[%clk 0:02:53]} 6. Bd3 {[%clk 0:02:58]}  dxc4 {[%clk 0:02:48]} 7. Bxc4 {[%clk 0:02:58]}  b5 {[%clk 0:02:48]} 8. Bd3 {[%clk 0:02:58]}  c5 {[%clk 0:02:48]} 9. dxc5 {[%clk 0:02:58]}  Bxc5 {[%clk 0:02:47]} 10. O-O {[%clk 0:02:56]}  Bb7 {[%clk 0:02:46]} 11. Qe2 {[%clk 0:02:56]}  Nbd7 {[%clk 0:02:42]} 12. Rd1 {[%clk 0:02:56]}  Qc7 {[%clk 0:02:37]} 13. a3 {[%clk 0:02:55]}  O-O {[%clk 0:02:30]} 14. h3 {[%clk 0:02:55]}  Ne5 {[%clk 0:02:26]} 15. Nxe5 {[%clk 0:02:47]}  Qxe5 {[%clk 0:02:27]} 16. e4 {[%clk 0:02:32]}  Nh5 {[%clk 0:02:09]} 17. Bc2 {[%clk 0:02:14]}  Nf4 {[%clk 0:01:37]} 18. Qf3 {[%clk 0:02:13]}  Ng6 {[%clk 0:01:24]} 19. Be3 {[%clk 0:01:38]}  Bd6 {[%clk 0:01:23]} 20. g3 {[%clk 0:01:33]}  Bc5 {[%clk 0:01:23]} 21. Rd2 {[%clk 0:00:55]}  Qc7 {[%clk 0:01:09]} 22. Rad1 {[%clk 0:00:52]}  Ne5 {[%clk 0:01:09]} 23. Qe2 {[%clk 0:00:50]}  Bxe3 {[%clk 0:01:09]} 24. fxe3 {[%clk 0:00:36]}  Nc4 {[%clk 0:01:07]} 25. Kh2 {[%clk 0:00:14]}  Nxd2 {[%clk 0:01:06]} 26. Rxd2 {[%clk 0:00:15]}  Rad8 {[%clk 0:01:05]} 27. e5 {[%clk 0:00:15]}  Qxe5 {[%clk 0:01:02]} 0-1


[Site "https://www.chess.com"]

[Event "Titled Tuesday Blitz October 5 2021"]
[White "Lehtosaari, Mauri"]
[Black "Karolczuk, Iwo"]
[WhiteFideId "501999"]
[BlackFideId "21816972"]
[WhiteElo "2450"]
[BlackElo "2093"]
[Result "0-1"]
[Round "07"]
[TimeControl "180+1"]
[Date "2021.10.05"]
[WhiteClock "0:00:06"]
[BlackClock "0:00:25"]

1. d4 {[%clk 0:03:00]}  Nf6 {[%clk 0:02:58]} 2. Nf3 {[%clk 0:03:00]}  g6 {[%clk 0:02:57]} 3. g3 {[%clk 0:02:59]}  Bg7 {[%clk 0:02:57]} 4. Bg2 {[%clk 0:03:00]}  O-O {[%clk 0:02:58]} 5. O-O {[%clk 0:03:00]}  c6 {[%clk 0:02:57]} 6. b3 {[%clk 0:03:01]}  d5 {[%clk 0:02:54]} 7. Bb2 {[%clk 0:03:01]}  a5 {[%clk 0:02:54]} 8. a3 {[%clk 0:03:00]}  h6 {[%clk 0:02:50]} 9. Nbd2 {[%clk 0:02:59]}  g5 {[%clk 0:02:40]} 10. Re1 {[%clk 0:02:49]}  Bf5 {[%clk 0:02:39]} 11. Ne5 {[%clk 0:02:42]}  Nbd7 {[%clk 0:02:38]} 12. c4 {[%clk 0:02:32]}  e6 {[%clk 0:02:31]} 13. e4 {[%clk 0:02:15]}  dxe4 {[%clk 0:02:28]} 14. Nxe4 {[%clk 0:02:15]}  Qb6 {[%clk 0:02:02]} 15. Nxd7 {[%clk 0:02:03]}  Nxd7 {[%clk 0:02:01]} 16. Nd6 {[%clk 0:02:02]}  Bg6 {[%clk 0:01:57]} 17. c5 {[%clk 0:01:50]}  Qc7 {[%clk 0:01:55]} 18. b4 {[%clk 0:01:49]}  Nf6 {[%clk 0:01:44]} 19. b5 {[%clk 0:01:41]}  Nd5 {[%clk 0:01:43]} 20. b6 {[%clk 0:01:39]}  Qd7 {[%clk 0:01:43]} 21. Bxd5 {[%clk 0:01:36]}  exd5 {[%clk 0:01:42]} 22. Qf3 {[%clk 0:01:31]}  Rfd8 {[%clk 0:01:25]} 23. g4 {[%clk 0:00:54]}  Bf8 {[%clk 0:01:20]} 24. Nf5 {[%clk 0:00:54]}  Bxf5 {[%clk 0:01:20]} 25. gxf5 {[%clk 0:00:55]}  Re8 {[%clk 0:01:17]} 26. Re3 {[%clk 0:00:52]}  Rxe3 {[%clk 0:01:16]} 27. fxe3 {[%clk 0:00:52]}  Re8 {[%clk 0:01:16]} 28. Rf1 {[%clk 0:00:50]}  Re4 {[%clk 0:01:15]} 29. Bc1 {[%clk 0:00:49]}  a4 {[%clk 0:01:12]} 30. f6 {[%clk 0:00:45]}  Qe6 {[%clk 0:01:09]} 31. Qf5 {[%clk 0:00:30]}  Qxf5 {[%clk 0:01:02]} 32. Rxf5 {[%clk 0:00:31]}  Kh7 {[%clk 0:01:01]} 33. Kg2 {[%clk 0:00:29]}  Kg6 {[%clk 0:01:01]} 34. Rf1 {[%clk 0:00:29]}  h5 {[%clk 0:01:00]} 35. Bd2 {[%clk 0:00:26]}  Re8 {[%clk 0:00:59]} 36. h3 {[%clk 0:00:22]}  Bh6 {[%clk 0:00:57]} 37. Kf3 {[%clk 0:00:18]}  Kxf6 {[%clk 0:00:56]} 38. Ke2+ {[%clk 0:00:18]}  Kg6 {[%clk 0:00:56]} 39. Rb1 {[%clk 0:00:17]}  f5 {[%clk 0:00:53]} 40. Kf2 {[%clk 0:00:14]}  h4 {[%clk 0:00:43]} 41. Rb4 {[%clk 0:00:13]}  Ra8 {[%clk 0:00:43]} 42. Rb1 {[%clk 0:00:14]}  g4 {[%clk 0:00:41]} 43. Rg1 {[%clk 0:00:13]}  Kh5 {[%clk 0:00:41]} 44. Be1 {[%clk 0:00:09]}  Re8 {[%clk 0:00:40]} 45. Bd2 {[%clk 0:00:10]}  Re7 {[%clk 0:00:30]} 46. Rb1 {[%clk 0:00:07]}  gxh3 {[%clk 0:00:29]} 47. Rh1 {[%clk 0:00:06]}  Re4 {[%clk 0:00:25]} 48. Rxh3 {[%clk 0:00:06]}  f4 {[%clk 0:00:25]} 0-1


[Site "https://www.chess.com"]

[Event "Titled Tuesday Blitz October 5 2021"]
[White "Maly, Alexey"]
[Black "King, Alexander"]
[WhiteFideId "14103184"]
[BlackFideId "2063620"]
[WhiteElo "2294"]
[BlackElo "2306"]
[Result "1-0"]
[Round "07"]
[TimeControl "180+1"]
[Date "2021.10.05"]
[WhiteClock "0:00:46"]
[BlackClock "0:00:01"]

1. d4 {[%clk 0:03:00]}  d5 {[%clk 0:02:59]} 2. c4 {[%clk 0:03:00]}  e6 {[%clk 0:03:00]} 3. Nf3 {[%clk 0:02:58]}  Nf6 {[%clk 0:03:00]} 4. e3 {[%clk 0:02:58]}  Be7 {[%clk 0:02:56]} 5. Nbd2 {[%clk 0:02:55]}  O-O {[%clk 0:02:54]} 6. Bd3 {[%clk 0:02:55]}  b6 {[%clk 0:02:54]} 7. O-O {[%clk 0:02:55]}  Bb7 {[%clk 0:02:54]} 8. Qe2 {[%clk 0:02:56]}  Nbd7 {[%clk 0:02:44]} 9. e4 {[%clk 0:02:56]}  dxe4 {[%clk 0:02:43]} 10. Nxe4 {[%clk 0:02:57]}  c5 {[%clk 0:02:40]} 11. dxc5 {[%clk 0:02:56]}  Nxe4 {[%clk 0:02:30]} 12. Bxe4 {[%clk 0:02:57]}  Bxe4 {[%clk 0:02:31]} 13. Qxe4 {[%clk 0:02:57]}  Nxc5 {[%clk 0:02:31]} 14. Qe3 {[%clk 0:02:55]}  Qd3 {[%clk 0:02:24]} 15. b3 {[%clk 0:02:43]}  Bf6 {[%clk 0:02:22]} 16. Qxd3 {[%clk 0:02:39]}  Nxd3 {[%clk 0:02:23]} 17. Rb1 {[%clk 0:02:29]}  Rac8 {[%clk 0:02:15]} 18. Ba3 {[%clk 0:02:27]}  Rfd8 {[%clk 0:02:14]} 19. Rfd1 {[%clk 0:02:22]}  g5 {[%clk 0:01:52]} 20. Kf1 {[%clk 0:02:18]}  Kg7 {[%clk 0:01:34]} 21. Ne1 {[%clk 0:02:14]}  Ne5 {[%clk 0:01:15]} 22. Ke2 {[%clk 0:02:11]}  Nc6 {[%clk 0:01:07]} 23. Nc2 {[%clk 0:02:09]}  Kg6 {[%clk 0:01:04]} 24. Rxd8 {[%clk 0:02:05]}  Rxd8 {[%clk 0:01:05]} 25. Rd1 {[%clk 0:02:06]}  Rxd1 {[%clk 0:01:03]} 26. Kxd1 {[%clk 0:02:07]}  h5 {[%clk 0:00:55]} 27. Ke2 {[%clk 0:02:05]}  g4 {[%clk 0:00:46]} 28. Bd6 {[%clk 0:02:01]}  Kf5 {[%clk 0:00:39]} 29. b4 {[%clk 0:01:33]}  Be5 {[%clk 0:00:12]} 30. Bxe5 {[%clk 0:01:33]}  Nxe5 {[%clk 0:00:08]} 31. c5 {[%clk 0:01:31]}  bxc5 {[%clk 0:00:02]} 32. bxc5 {[%clk 0:01:32]}  Ke4 {[%clk 0:00:02]} 33. Nb4 {[%clk 0:01:29]}  Nc4 {[%clk 0:00:01]} 34. c6 {[%clk 0:01:26]}  Nb6 {[%clk 0:00:01]} 35. c7 {[%clk 0:01:22]}  a5 {[%clk 0:00:01]} 36. Nc6 {[%clk 0:01:19]}  Nc8 {[%clk 0:00:02]} 37. Nxa5 {[%clk 0:01:16]}  Kd5 {[%clk 0:00:03]} 38. Nb7 {[%clk 0:01:13]}  f5 {[%clk 0:00:01]} 39. Nd8 {[%clk 0:01:02]}  e5 {[%clk 0:00:01]} 40. Nf7 {[%clk 0:00:56]}  Ke6 {[%clk 0:00:01]} 41. Ng5+ {[%clk 0:00:47]}  Kf6 {[%clk 0:00:01]} 42. h4 {[%clk 0:00:46]} 1-0


[Site "https://www.chess.com"]